Cogmind - Beta 16.1 @@@ ROGUE MODE // 2026.05.01 @ 16:37:33 Player: SunShine214 Result: Destroyed by S-27 Virus with Autogun Performance ------------- Evolutions (5) 2500 Regions Visited (4) 800 Robots Destroyed (67) 335 Value Destroyed (1978) 1978 Prototype IDs (20) 400 Alien Tech Used (0) 0 Bonus (800) 800 TOTAL SCORE: 6813 Bonus ------- Registered with UFD 300 Met Optimus in HQ 500 Cogmind --------- Core Integrity 0/1000 Matter 291/300 Energy 100/100 System Corruption 9% Temperature Cool (0) Movement Core (50) Location -5/Factory Parts ------- > --- POWER (1) -------- (None) > --- PROPULSION (4) --- (None) > --- UTILITY (6) ------ Improved Signal Interpreter Surveybot 17 Chip Improved Hacking Suite > --- WEAPON (6) ------- (None) > --- INVENTORY (5) ---- Large Storage Unit Improved Propulsion Shielding Mapping Drone Bay (3/3) Powered Cannon Peak State ------------ > --- POWER ------------ (None) > --- PROPULSION ------- Armored Treads > --- UTILITY ---------- High-capacity Storage Unit Improved Signal Interpreter Surveybot 17 Chip Improved Hacking Suite > --- WEAPON ----------- Proton Missile Launcher 1B-0RG's Assimilator > --- INVENTORY -------- Light Nuclear Core Neutrino Core Carbon-fiber Leg Large Storage Unit Matter Compressor Improved Propulsion Shielding Improved Propulsion Shielding Long-range Tractor Beam Mapping Drone Bay Powered Cannon Improved Plasma Cutter CPS Tube Botcube [Rating: 94] Favorites ----------- Power Ion Engine Engine Ion Engine Power Core Neutrino Core Propulsion Light Treads Treads Light Treads Wheel Armored Huge Wheel Utility Large Storage Unit Device Sensor Array Storage Large Storage Unit Processor Surveybot 17 Chip Hackware Improved Hacking Suite Protection Improved Propulsion Shielding Weapon Makeshift Hammer Energy Gun Medium Laser Energy Cannon Light EM Pulse Cannon Ballistic Cannon Slug Cannon Launcher Subdweller Shrapnel Launcher Impact Weapon Makeshift Hammer Slashing Weapon Mining Claw Special Melee Weapon 1B-0RG's Assimilator Build | -11 -10 -10 -7 -5 ------- Run | Yrd Mat Sub Scr Fac Slots Evolved 10 | . . . . 10 Power . | . . . . . Propulsion 2 | . . . . 2 Utility 4 | . . . . 4 Weapon 4 | . . . . 4 Parts Attached 50 | 7 5 13 8 17 Power 7 | 1 . 2 2 2 Engine 4 | 1 . 2 1 . Core 3 | . . . 1 2 Reactor . | . . . . . Propulsion 10 | 2 1 2 2 3 Treads 6 | 2 1 2 . 1 Leg . | . . . . . Wheel 4 | . . . 2 2 Hover . | . . . . . Flight . | . . . . . Utility 15 | 2 2 1 2 8 Device 5 | 1 1 1 . 2 Storage 4 | 1 1 . 1 1 Processor 2 | . . . 1 1 Hackware 2 | . . . . 2 Protection 2 | . . . . 2 Artifact . | . . . . . Weapon 18 | 2 2 8 2 4 Energy Gun 2 | 2 . . . . Energy Cannon 4 | . 1 3 . . Ballistic Gun . | . . . . . Ballistic Cannon 2 | . . 1 1 . Launcher 5 | . . 2 . 3 Special Weapon . | . . . . . Impact Weapon 3 | . . 2 1 . Slashing Weapon 1 | . 1 . . . Piercing Weapon . | . . . . . Special Melee Weapon 1 | . . . . 1 Unidentified Prototypes 1 | . . . . 1 Corrupted Parts 2 | . . . . 2 System Corruption 4 | . . . . 4 Parts Lost 20 | . . 6 . 14 Power 3 | . . 1 . 2 Propulsion 5 | . . 2 . 3 Utility 3 | . . . . 3 Weapon 9 | . . 3 . 6 Highest Loss Streak 4 | . . 4 . 4 To Critical Strikes . | . . . . . Average Backups 10 | . 8 13 8 10 Power . | . . . 1 1 Propulsion 3 | . 3 4 1 1 Utility 4 | . 2 5 3 4 Weapon 1 | . 2 2 1 1 Tool/Special . | . . . . . Unused Backups 18 | . 1 7 3 7 Power 3 | . . 2 1 . Propulsion 5 | . . 2 2 1 Utility 6 | . . 3 . 3 Weapon 2 | . 1 . . 1 Tool/Special 2 | . . . . 2 Average Slot Usage (%) 88 | . 100 98 85 44 Engine 11 | . 14 13 14 1 Treads 18 | . 28 27 . 2 Wheel 3 | . . . 13 3 Device 11 | . 14 14 10 1 Storage 12 | . 14 14 14 4 Processor 2 | . . . 3 10 Energy Gun 1 | . 9 . . . Energy Cannon 4 | . 8 7 . . Ballistic Cannon 5 | . . 5 13 1 Launcher 1 | . . 3 . 1 Impact Weapon 8 | . . 9 14 3 Slashing Weapon 2 | . 10 1 . . Peak Build Rating 94 | 7 10 20 38 94 Average Rating 19 | 5 8 12 31 42 On Entrance 15 | . 7 10 20 38 Avg Prop Armor Cover (%) 16 | . . . . 16 Naked Turns . | . . . . . Heaviest Build 102 | 14 32 37 44 102 Greatest Support 40 | 40 40 40 40 28 Greatest Overweight (x) 6 | . . 1 1 6 Average Overweight (x) . | . . . . 1 Largest Inventory Capacity 20 | 8 15 15 15 20 Average Capacity 14 | 7 11 15 15 17 Most Carried 20 | 1 15 15 15 20 Average Carried 13 | . 8 14 14 15 Final Capacity 15 | 8 15 15 15 5 Final Carried 15 | 1 15 15 15 5 Class Distribution -------------------- 76% | Mutant 19% | Derelict-Mutant 3% | Hacker-Mutant Dominant Class ---------------- Mutant | -10/Materials Mutant | -10/Subcaves Derelict-Mutant | -7/Scraptown Mutant | -5/Factory Resources | -11 -10 -10 -7 -5 ----------- Run | Yrd Mat Sub Scr Fac Matter Collected 1285 | 247 50 410 124 454 Remotely . | . . . . . Salvage Created 2196 | 237 813 614 . 532 Parts 129 | 22 39 37 . 31 Haulers Intercepted 2 | . 2 . . . Recyclers Shooed 6 | 1 2 . . 3 Parts Field Recycled . | . . . . . Retrieved Matter . | . . . . . Parts Self-Destructed 7 | . . 7 . . Prevented 4 | . . 4 . . Parts Restored . | . . . . . Kills | -11 -10 -10 -7 -5 ------- Run | Yrd Mat Sub Scr Fac Combat Hostiles Destroyed 45 | . 13 20 . 12 Melee 6 | . . 2 . 4 Guns 8 | . 8 . . . Cannons 18 | . 5 11 . 2 AOE 6 | . . 2 . 4 Classes Destroyed 14 | 3 4 3 . 4 Worker 5 | 1 2 . . 2 Builder 1 | . . . . 1 Tunneler 8 | 8 . . . . Hauler 2 | . 2 . . . Recycler 1 | 1 . . . . Operator 2 | . 2 . . . Watcher 3 | . 3 . . . Swarmer 7 | . . 3 . 4 Grunt 21 | . 13 4 . 4 Brawler 1 | . . . . 1 Sentry 1 | . . 1 . . Hunter 1 | . . . . 1 Programmer 2 | . . . . 2 Subdweller 12 | . . 12 . . Best Kill Streak 6 | 4 3 3 . 6 Combat Bots Only 4 | . 3 3 . 4 Max Kills in Single Turn 3 | 1 1 1 . 3 Gunslinging . | . . . . . Exploded 1 | . . 1 . 1 Melee 1 | . . 1 . 1 Uniques/NPCs Destroyed . | . . . . . Combat | -11 -10 -10 -7 -5 -------- Run | Yrd Mat Sub Scr Fac Hostile Shots Fired 355 | . 64 81 . 210 Missed 112 | . 17 33 . 62 Hits 243 | . 47 48 . 148 Projectile 243 | . 47 48 . 148 Critical Strikes 9 | . 2 1 . 6 Damage Taken 4347 | . 578 847 . 2922 Core 1192 | . 105 78 . 1009 Absorbed by Shields . | . . . . . Redirected to Shielding 105 | . . . . 105 Regen/Repaired (Parts) 152 | . . . 152 . Core Remaining (%) 63 | 100 . . 26 . Volleys Fired 175 | 34 72 49 . 20 Largest 2 | 2 2 2 . 1 Hottest 112 | 90 90 112 . 40 Shots Fired 238 | 47 101 70 . 20 Gun 124 | 47 77 . . . Cannon 94 | . 24 58 . 12 Launcher 20 | . . 12 . 8 Special . | . . . . . Kinetic 35 | . . 23 . 12 Thermal 124 | 47 77 . . . Explosive 12 | . . 12 . . Electromagnetic 67 | . 24 35 . 8 Robot Hit Streak 17 | 6 14 17 . 5 Robot Miss Streak 3 | 3 3 2 . 3 Penetration Max . | . . . . . Secondary Targets 1 | . 1 . . . Max Gunslinging Chain 1 | . 1 . . . Shots Hit Robots 213 | 27 83 63 . 40 Core Hits 89 | 12 35 23 . 19 Critical Kills 2 | . . . . 2 Critical Parts Destroyed 4 | . . . . 4 Critical Strikes 15 | 2 5 2 . 6 Burn 7 | 2 5 . . . Corrupt 2 | . . 2 . . Smash 6 | . . . . 6 Melee Attacks 122 | . 14 44 . 64 Impact 98 | . . 34 . 64 Slashing 24 | . 14 10 . . Piercing . | . . . . . Sneak Attacks 4 | . 4 . . . Combat Hostiles . | . . . . . Follow-up Attacks . | . . . . . Damage Inflicted 6010 | 338 1496 2137 . 2039 Guns 1041 | 326 715 . . . Cannons 1727 | . 457 880 . 390 Explosions 1157 | . 34 823 . 300 Melee 2031 | . 279 434 . 1318 Ramming 54 | 12 11 . . 31 Kinetic 733 | . . 343 . 390 Thermal 1107 | 326 749 . . 32 Explosive 823 | . . 823 . . Electromagnetic 1262 | . 457 537 . 268 Impact 1705 | . . 387 . 1318 Slashing 326 | . 279 47 . . Piercing . | . . . . . Highest Corruption 9 | . . . . 9 Average Corruption 6 | . . . . 6 Corruption Purged . | . . . . . Corruption Blocked . | . . . . . Effects 13 | . . . . 13 Message Errors 2 | . . . . 2 Matter Fused 4 | . . . . 4 Energy Discharges 1 | . . . . 1 Parts Fused 1 | . . . . 1 Data Loss (minor) 3 | . . . . 3 Data Loss (major) 2 | . . . . 2 Overload Shots . | . . . . . Overflow Damage 475 | . 18 49 . 408 Projectiles . | . . . . . Explosions 16 | . . . . 16 Melee 459 | . 18 49 . 392 Knockbacks 17 | . . 5 . 12 Impact 13 | . . 3 . 10 Kinetic 3 | . . 2 . 1 Secondary 1 | . . . . 1 Self-Inflicted Damage 95 | . 17 . . 78 Shots 7 | . 1 . . 6 Rammed 13 | 6 2 . . 5 Targets Rammed 13 | 6 2 . . 5 Kicked . | . . . . . Crushed . | . . . . . Highest Temperature 301 | 270 301 6 . 16 Average Temperature 99 | 108 102 4 . 9 Received Heat Transfer 1167 | . 351 195 . 621 Effects 3 | 2 1 . . . Interference 3 | 2 1 . . . Siege Activations . | . . . . . Martial Activations . | . . . . . Shielding Activations . | . . . . . Robots Disrupted . | . . . . . Combat Hostiles . | . . . . . Robots Corrupted 7 | . . 5 . 2 Combat Hostiles 7 | . . 5 . 2 Parts Fried 13 | . 2 5 . 6 Impact Corruptions 21 | . . 6 . 15 Robots Melted . | . . . . . Combat Hostiles . | . . . . . Parts Melted 5 | 1 4 . . . Heat Transferred 3324 | 945 2329 . . 50 Parts Sabotaged . | . . . . . Parts Stolen . | . . . . . Parts Stripped . | . . . . . Power Chain Reactions 2 | . 1 . . 1 Alert | -11 -10 -10 -7 -5 ------- Run | Yrd Mat Sub Scr Fac Maximum Alert Level . | . . . . . Low Security (%) 100 | 100 100 . . 100 Level 1 . | . . . . . Level 2 . | . . . . . Level 3 . | . . . . . Level 4 . | . . . . . Level 5 . | . . . . . High Security . | . . . . . Max Security . | . . . . . Peak Influence 125 | 15 125 . . 124 Initial . | . . . . . Average 36 | 2 42 . . 39 Influence Increases 1188 | 50 431 220 . 487 Destroy 0b10 Robot/C 660 | . 260 160 . 240 Destroy 0b10 Robot/NC 110 | 50 45 . . 15 Destroy Leader 140 | . 70 30 . 40 Trap Triggered on 0b10 10 | . 10 . . . Successful Hack 12 | . 12 . . . Disable Machine 75 | . 30 . . 45 Destroy Structure 16 | . 4 . . 12 Lose Combat Pursuer 165 | . . 30 . 135 Influence Decreases 1126 | 50 371 280 . 425 Entered New Map 29 | . . 29 . . Time Decay 947 | 50 371 241 . 285 Lost Part 150 | . . 10 . 140 Squads Dispatched 10 | . 3 . . 7 Investigation 2 | . 2 . . . Extermination 2 | . . . . 2 Reinforcement 6 | . 1 . . 5 Assault . | . . . . . Garrison . | . . . . . Intercept . | . . . . . Searches Triggered . | . . . . . Construction Impeded 2 | . . . . 2 Haulers Reinforced . | . . . . . Active Scanning Responses . | . . . . . Cargo Convoy Interrupts 1 | . . . . 1 Stealth | -11 -10 -10 -7 -5 --------- Run | Yrd Mat Sub Scr Fac Distress Signals 8 | . 3 . . 5 Communications Jammed . | . . . . . Distress Signals . | . . . . . Times Spotted 88 | . 30 24 . 34 Peak Tracking Total 8 | . 5 3 . 8 Tactical Retreats 8 | . . 3 . 5 Traps | -11 -10 -10 -7 -5 ------- Run | Yrd Mat Sub Scr Fac Traps Triggered 2 | . 1 1 . . Indirectly . | . . . . . Trap Hack Attempts . | . . . . . Triggered . | . . . . . Disarmed . | . . . . . Reprogrammed 6 | . 6 . . . Reused 1 | . 1 . . . Traps Extracted . | . . . . . Installed . | . . . . . Triggered 1 | . 1 . . . Machines | -11 -10 -10 -7 -5 ---------- Run | Yrd Mat Sub Scr Fac Machines Disabled 6 | . 2 1 . 3 Max in Single Turn 1 | . 1 1 . 1 Machines Repaired . | . . . . . Machines Dismantled . | . . . . . Machines Sabotaged . | . . . . . Overloaded Fab Kills . | . . . . . Hacking | -11 -10 -10 -7 -5 --------- Run | Yrd Mat Sub Scr Fac Machines Accessed 17 | . 9 2 5 1 Terminals 6 | . 6 . . . Fabricators . | . . . . . Repair Stations 2 | . 1 . . 1 Recycling Units 2 | . 2 . . . Scanalyzers . | . . . . . Garrison Access . | . . . . . Total Hacks 45 | . 20 6 17 2 Successful 30 | . 7 6 17 . Failed 15 | . 13 . . 2 Catastrophic 1 | . . . . 1 Database Lockouts . | . . . . . Manual . | . . . . . Terminals 13 | . 13 . . . Fabricators . | . . . . . Repair Stations 5 | . 3 . . 2 Recycling Units 4 | . 4 . . . Scanalyzers . | . . . . . Garrison Access . | . . . . . Terminal Hacks 28 | . 5 6 17 . Record 21 | . . 5 16 . Locate Traps 1 | . 1 . . . Reprogram Traps 1 | . 1 . . . Dispatch Records 1 | . 1 . . . Registered Components 1 | . 1 . . . Zone Layout 1 | . 1 . . . Proto ID Catalog 2 | . . 1 1 . Fabricator Hacks . | . . . . . Repair Station Hacks 1 | . 1 . . . Scan Component 1 | . 1 . . . Recycling Unit Hacks 1 | . 1 . . . Retrieve Components 1 | . 1 . . . Scanalyzer . | . . . . . Garrison Access Hacks . | . . . . . Unauthorized Hacks . | . . . . . Terminals . | . . . . . Fabricators . | . . . . . Repair Stations . | . . . . . Recycling Units . | . . . . . Scanalyzers . | . . . . . Garrison Access . | . . . . . Data Cores Recovered . | . . . . . Used . | . . . . . Hacking Detections 5 | . 4 . . 1 Full Trace Events 2 | . 2 . . . Feedback Events . | . . . . . Feedback Blocked . | . . . . . Robot Schematics Acquired . | . . . . . Robots Built . | . . . . . Authchips . | . . . . . Time . | . . . . . Total Robot Build Rating . | . . . . . Part Schematics Acquired . | . . . . . Parts Built . | . . . . . Authchips . | . . . . . Time . | . . . . . Total Part Build Rating . | . . . . . Part Studies Acquired . | . . . . . Parts Repaired . | . . . . . Time . | . . . . . Parts Recycled . | . . . . . Recycled Matter . | . . . . . Retrieved Matter . | . . . . . Retrieved Components . | . . . . . Parts Scanalyzed . | . . . . . Part Schematics Acquired . | . . . . . Parts Damaged . | . . . . . Bothacking | -11 -10 -10 -7 -5 ------------ Run | Yrd Mat Sub Scr Fac Used RIF Installer . | . . . . . Robots Hacked . | . . . . . Non-combat . | . . . . . Combat . | . . . . . Robot Hacks Applied . | . . . . . Relay Couplers Released . | . . . . . Fabnet Peak Effective % . | . . . . . Robots Rewired . | . . . . . Allies Hacked . | . . . . . Hacks Repelled . | . . . . . Allies | -11 -10 -10 -7 -5 -------- Run | Yrd Mat Sub Scr Fac Total Allies . | . . . . . Largest Group . | . . . . . Highest-Rated Group . | . . . . . Highest-Rated Ally . | . . . . . Initial UFD Resources 37 | . . . . 37 Total Orders . | . . . . . Ally Attacks . | . . . . . Total Damage . | . . . . . Kills . | . . . . . Allies Corrupted . | . . . . . Allies Melted . | . . . . . Intel | -11 -10 -10 -7 -5 ------- Run | Yrd Mat Sub Scr Fac Active Infowar (turns) 6381 | 31 1302 3550 1151 347 Sensors 4112 | . . 2614 1151 347 Seismic 2269 | 31 1302 936 . . Robot Analysis Total . | . . . . . Derelict Logs Recovered 1 | . . 1 . . Drone Launches . | . . . . . Drone Recoveries . | . . . . . Exploration | -11 -10 -10 -7 -5 ------------- Run | Yrd Mat Sub Scr Fac Turns Passed 7761 | 270 1302 3550 1585 1054 Spaces Moved 4364 | 107 597 1707 1348 605 Core 166 | 2 . . . 164 Treads 2506 | 105 597 1707 21 76 Legs . | . . . . . Wheels 1692 | . . . 1327 365 Hover . | . . . . . Flight . | . . . . . Fastest Speed 50 | 50 160 160 115 50 Average Speed 142 | 157 160 160 115 130 Slowest Speed 570 | 160 160 240 160 570 Overloaded Moves . | . . . . . Propulsion Burnouts . | . . . . . Robots Hopped . | . . . . . Potential Cave-ins 3 | . . 3 . . Cave-ins Triggered . | . . . . . Exploration Rate (%) 55 | 5 87 86 80 21 Regions Visited 4 Branch Regions 2 Pre-discovered Areas 2 | . . 2 . . Known Exits Taken . | . . . . . Unknown Exits Taken 4 | 1 1 1 1 . Scrap Searched 17 | . . 12 5 . Spaces Dug 9 | . 1 7 . 1 Terrain Destroyed 78 | . 3 71 . 4 Melee 9 | . 1 7 . 1 Projectile 2 | . . 1 . 1 AOE 67 | . 2 63 . 2 Terrain Rammed 2 | . . . . 2 Walls Destroyed . | . . . . . Machines Disabled . | . . . . . Actions | -11 -10 -10 -7 -5 --------- Run | Yrd Mat Sub Scr Fac Total 5513 | 154 814 2392 1377 776 Wait 713 | . 106 549 6 52 Move 4360 | 106 596 1706 1347 605 Hop . | . . . . . Pick Up 36 | 1 15 10 5 5 Fast Attach 24 | 7 . 3 2 12 Attach 6 | . . 3 . 3 Detach 2 | . . . . 2 Swap 29 | . 5 14 8 2 Drop 31 | . 4 14 9 4 Fire 175 | 34 72 49 . 20 Melee 122 | . 14 44 . 64 Ram 7 | . . . . 7 Kick . | . . . . . Crush 8 | 6 2 . . . Escape Stasis . | . . . . . Rewire . | . . . . . Trap . | . . . . . Miscellaneous . | . . . . . Route ------- -11/Scrapyard -10/Materials (discovered 4 exits: [*Mat x3] / *Sub) -10/Subcaves (discovered 3 exits: [*Mat x2] / *Scr) -7/Scraptown (discovered 2 exits: *Fac x2) -5/Factory History --------- Turn | Location | Event 7 | -11/Scrapyard | Discovered new exit (range 14) 271 | -11/Scrapyard | Entered Materials 310 | -10/Materials | Build established: Mutant 379 | -10/Materials | Discovered new exit (range 8) 560 | -10/Materials | Discovered new exit (range 15) 996 | -10/Materials | Discovered new exit (range 7) 1379 | -10/Materials | Discovered new exit (range 10) 1573 | -10/Materials | Entered Subcaves 1574 | -10/Subcaves | Approached by a straggling Scientist 1578 | -10/Subcaves | Learned 4 Materials zone layouts 1662 | -10/Subcaves | Scientist uncovered a shortcut to Scraptown 1760 | -10/Subcaves | A swath of the cavern ceiling suddenly collapsed 1813 | -10/Subcaves | Discovered new exit (range 8) 1864 | -10/Subcaves | Lost 4 parts (1p1n2w) 2295 | -10/Subcaves | Discovered new exit (range 14) 2696 | -10/Subcaves | Core integrity fell below 50% 2912 | -10/Subcaves | Visited Clippyterm 2917 | -10/Subcaves | Learned location of Deep Caves (-6) 2917 | -10/Subcaves | Learned location of Section 7 (-2) 3000 | -10/Subcaves | A swath of the cavern ceiling suddenly collapsed 3048 | -10/Subcaves | Disturbed a concealed Subdweller 3112 | -10/Subcaves | Shifting Twisted Machinery released Battle Rifle 3116 | -10/Subcaves | Shifting Twisted Machinery released Lgt. Humpback 4070 | -10/Subcaves | Ambushed by Subdwellers from Twisted Machinery 4414 | -10/Subcaves | Shifting Twisted Machinery released Sub. Machine Gun 4420 | -10/Subcaves | Shifting Twisted Machinery released Sub. Shrapnel Launcher 4747 | -10/Subcaves | Shifting Twisted Machinery released Scrap Shield 4750 | -10/Subcaves | Shifting Twisted Machinery released Scrap Shield 4819 | -10/Subcaves | Visited 4L-MR0's lab 4842 | -10/Subcaves | Found Prototype Special Melee Weapon 4848 | -10/Subcaves | Found Powered Cannon 5123 | -10/Subcaves | Entered Scraptown 5298 | -7/Scraptown | Visited UFD Registry 5298 | -7/Scraptown | Registered with UFD as "Lasermod" 5325 | -7/Scraptown | Visited Junk Repository 5360 | -7/Scraptown | Visited DA-N13 Charitable Foundation 5367 | -7/Scraptown | Found DCF Scrap (27 items) 5412 | -7/Scraptown | Visited Botcube Research 5453 | -7/Scraptown | Delivered Scrap Shield to a Scientist 5489 | -7/Scraptown | Found Botcube 5666 | -7/Scraptown | Visited Cyclists 5674 | -7/Scraptown | Entered Cyclist Reading Room 5676 | -7/Scraptown | Build established: Derelict-Mutant 5810 | -7/Scraptown | Heard Great Nut preacher, LISTEN AND RECITE! 5887 | -7/Scraptown | Discovered new exit (range 11) 5934 | -7/Scraptown | Guru changed UFD alias to "Novaripper" 6018 | -7/Scraptown | Visited IN-MT5's Study 6060 | -7/Scraptown | Visited CR-KLE's Repair Center 6069 | -7/Scraptown | CR-KLE repaired 6 parts 6141 | -7/Scraptown | Visited Science Testing Area 6160 | -7/Scraptown | Visited Scrapoid Research Area 6204 | -7/Scraptown | Visited Scrap Suit Storage 6214 | -7/Scraptown | Visited Cartography Club 6277 | -7/Scraptown | Found Surveybot 17 Chip 6431 | -7/Scraptown | Visited Research Penetration Think Tank 6473 | -7/Scraptown | Visited Science Guys 6629 | -7/Scraptown | Met Optimus 6629 | -7/Scraptown | Accepted into 0bPrime 6699 | -7/Scraptown | Discovered new exit (range 3) 6708 | -7/Scraptown | Entered Factory 6708 | -5/Factory | Evolved 10 slots: Propulsion x2, Utility x4, Weapon x4 7113 | -5/Factory | Lost 3 parts (1p1u1w) 7428 | -5/Factory | Cargo convoy interrupted 7473 | -5/Factory | Build established: Mutant 7488 | -5/Factory | Core integrity fell below 50% 7621 | -5/Factory | Lost 3 parts (1n1u1w) 7641 | -5/Factory | Identified 1B-0RG's Assimilator 7683 | -5/Factory | Core integrity fell below 20% 7702 | -5/Factory | Lost 4 parts (1p1n2w) 7762 | -5/Factory | Destroyed by S-27 Virus with Autogun Last Messages --------------- 07700_ O-16 Technician: "IFF HANDSHAKE FAILED. SECURING TERMINAL." 07708_ Penetrated by Slug. 07711_ System corrupted: Matter fused (-9). 07713_ Penetrated by Slug. 07717_ ALERT: Hostiles spotted, dispatching reinforcements to Terminal F012. 07720_ Slug penetrates Wall. 07720_ Slug penetrates Subcomponent Replicator. 07726_ MO6GF>IH2U10HTF6 07728_ O-24 Administrator: "IFF HANDSHAKE FAILED. SECURING TERMINAL." 07750_ O-16 Technician sends out distress signal. 07750_ O-16 Technician: "IFF HANDSHAKE FAILED. SECURING TERMINAL." 07752_ ALERT: Hostiles spotted, dispatching reinforcements to Terminal F013. 07753_ ALERT: Hostiles spotted, dispatching reinforcements to Terminal F006. Map ----- +----------------------------------------------------+ | ?????????????????????????????????????????????????? | | ?????????????????????????????????????????????????? | | ?????????????????????????????????????????????????? | | ?????????????????????????????????????????????????? | | ?????????????????????????????????????????????????? | | ?????????????????????????????????????????????????? | | ?????????????????????????????????????????????????? | | ?????????????????????????????????????????######??? | | ?????????????????????????????????????????# ? | | ?????????????????????????????????????????# ! | | ?????????????????????????????????????????# | | ??????????????????H??????????????????????# ! | | ??????????????????#+############################## | | ????????????????? # | | ???????????????? # | | ????????????? """ # " | | ????????????? """ # " | | ???????????? """ s # " | | ????????????????# s######### # " | | ????????????????# """ s #???????# # " | | ????????????????# ^! """ s #???????# # ! " | | ????????????????# !!! """ s #?????? / + | | ????????????????# #???? " # # " | | ????????????????# """ #?? " " # # ] " | | ????????????????# ! """ #?" " "?# # " | | ????????????????# """@ ###?? " "?# # " | | ????????????????# #???? " ??# # " | | ??????????????? """ #?????"???# # " | | ?????????????s """ #?????????# # | | ????????????? """ #?????????# ####### | | ?????????????? #?????????# #?????? | | ?????????????? w ! ?????????# #?????? | | ???????????????##?#+?#######?????????# #?????? | | ?????????????????????????????????????# #?????? | | ?????????????????????????????????????# ??????? | | ?????????????????????????????????????? ??????? | | ???????????????????????????????????????? ??????? | | ?????????????????????????????????????????????????? | | ?????????????????????????????????????????????????? | | ?????????????????????????????????????????????????? | | ?????????????????????????????????????????????????? | | ?????????????????????????????????????????????????? | | ?????????????????????????????????????????????????? | | ?????????????????????????????????????????????????? | | ?????????????????????????????????????????????????? | | ?????????????????????????????????????????????????? | | ?????????????????????????????????????????????????? | | ?????????????????????????????????????????????????? | | ?????????????????????????????????????????????????? | | ?????????????????????????????????????????????????? | +----------------------------------------------------+ Best States ------------- Heat Dissipation 40 Energy Generation 19 Energy Capacity 315 Matter Stores 300 Matter Capacity 550 Sight Range 16 Robot Scan Range 15 Terrain Scan Density 1210 Propulsion Shielding 66 Evasion (%) 50 Recoil Reduction 2 Offensive Hacking 22 Item Schematics ----------------- None Robot Schematics ------------------ None Fabricated ------------ Nothing Repaired ---------- Nothing Studied --------- None Alien Tech Used ----------------- None Achievements -------------- Bob, First Of His Name Longdome?! Challenges ------------ None Game ------ Seed CompanionShadingLayer Manual? 0 Play Time 00:44:14 Cumulative 164.3 hours Start 2026.05.01 @ 13:02:53 End 2026.05.01 @ 16:37:33 Sessions 2 Manual Loads 0 Difficulty Rogue Special Mode None Game No. 253 Rogue 253 Adventurer 0 Explorer 0 Win Type - Total 1 Types 1/0/0/0/0/0/0/0/0/0 Lore% 58 Gallery% 57 Achievement% 43 Wizard Run 0 Options --------- Layout 1 ASCII 0 Keyboard 1 Movement Arrows Keybinds 0 Fullscreen 1 Font 24/Smallcaps Map View 50x35 Zoom Use 0% Tactical HUD 1 Map Filters NONE Filters NONE Steam 1 RUN: e00b4f6d-3e39-453f-a4ae-96a2e1b8d10e